[Event "Titled Tuesday Blitz April 25 Early 2023"]
[White "Kozin, Yuri"]
[Black "Bacallao Alonso, Yusnel"]
[WhiteFideId "4129920"]
[BlackFideId "3507416"]
[WhiteElo "2619"]
[BlackElo "2561"]
[Result "0-1"]
[Round "09"]
[TimeControl "180+2"]
[Date "2023.04.25"]
[WhiteClock "0:00:12"]
[BlackClock "0:00:29"]

1. e4 {[%clk 0:03:00]}  c6 {[%clk 0:02:58]} 2. d4 {[%clk 0:03:00]}  d5 {[%clk 0:02:59]} 3. exd5 {[%clk 0:03:01]}  cxd5 {[%clk 0:02:59]} 4. c4 {[%clk 0:03:02]}  Nf6 {[%clk 0:02:59]} 5. Nc3 {[%clk 0:03:02]}  Nc6 {[%clk 0:02:59]} 6. Bg5 {[%clk 0:03:03]}  dxc4 {[%clk 0:02:58]} 7. d5 {[%clk 0:03:04]}  Ne5 {[%clk 0:02:58]} 8. Qd4 {[%clk 0:03:04]}  h6 {[%clk 0:02:58]} 9. Be3 {[%clk 0:03:04]}  Neg4 {[%clk 0:02:47]} 10. Bxc4 {[%clk 0:03:05]}  Nxe3 {[%clk 0:02:45]} 11. Qxe3 {[%clk 0:03:06]}  Qb6 {[%clk 0:02:31]} 12. Qe2 {[%clk 0:02:33]}  g6 {[%clk 0:02:11]} 13. d6 {[%clk 0:02:14]}  e6 {[%clk 0:01:33]} 14. Nb5 {[%clk 0:01:44]}  Bxd6 {[%clk 0:01:29]} 15. Qd2 {[%clk 0:01:01]}  Ne4 {[%clk 0:00:45]} 16. Qe2 {[%clk 0:00:29]}  Bb4+ {[%clk 0:00:42]} 17. Kd1 {[%clk 0:00:17]}  Bd7 {[%clk 0:00:34]} 18. Qxe4 {[%clk 0:00:14]}  Bxb5 {[%clk 0:00:34]} 19. Bxb5+ {[%clk 0:00:13]}  Qxb5 {[%clk 0:00:34]} 20. Nf3 {[%clk 0:00:12]}  O-O {[%clk 0:00:31]} 21. Qe5 {[%clk 0:00:12]}  Rfd8+ {[%clk 0:00:31]} 22. Kc2 {[%clk 0:00:13]}  Rac8+ {[%clk 0:00:30]} 23. Kb1 {[%clk 0:00:12]}  Qd3# {[%clk 0:00:29]} 0-1


[Site "https://www.chess.com"]

[Event "Titled Tuesday Blitz April 25 Early 2023"]
[White "Skliarov, Viktor"]
[Black "Djordjevic, Vuk"]
[WhiteFideId "14106736"]
[BlackFideId "902098"]
[WhiteElo "2317"]
[BlackElo "2452"]
[Result "0-1"]
[Round "09"]
[TimeControl "180+2"]
[Date "2023.04.25"]
[WhiteClock "0:00:02"]
[BlackClock "0:00:17"]

1. e4 {[%clk 0:03:00]}  d5 {[%clk 0:03:00]} 2. exd5 {[%clk 0:03:01]}  Qxd5 {[%clk 0:03:00]} 3. Nc3 {[%clk 0:03:01]}  Qd6 {[%clk 0:03:01]} 4. d4 {[%clk 0:03:02]}  Nf6 {[%clk 0:03:01]} 5. Nf3 {[%clk 0:03:02]}  c6 {[%clk 0:03:02]} 6. Ne5 {[%clk 0:03:03]}  Nbd7 {[%clk 0:03:02]} 7. Nc4 {[%clk 0:03:03]}  Qc7 {[%clk 0:03:02]} 8. Qf3 {[%clk 0:03:03]}  Nb6 {[%clk 0:03:02]} 9. Ne5 {[%clk 0:03:00]}  Be6 {[%clk 0:02:48]} 10. Bf4 {[%clk 0:02:52]}  Qd8 {[%clk 0:02:48]} 11. O-O-O {[%clk 0:02:50]}  g6 {[%clk 0:02:27]} 12. h3 {[%clk 0:01:45]}  Bg7 {[%clk 0:02:24]} 13. Kb1 {[%clk 0:01:45]}  O-O {[%clk 0:01:55]} 14. Bc1 {[%clk 0:01:30]}  Nbd5 {[%clk 0:01:30]} 15. Nxd5 {[%clk 0:01:24]}  Nxd5 {[%clk 0:01:26]} 16. Bc4 {[%clk 0:01:19]}  Qc7 {[%clk 0:01:25]} 17. Rhe1 {[%clk 0:01:16]}  b5 {[%clk 0:01:20]} 18. Bxd5 {[%clk 0:00:49]}  Bxd5 {[%clk 0:01:17]} 19. Qg3 {[%clk 0:00:49]}  Qb7 {[%clk 0:01:08]} 20. Ng4 {[%clk 0:00:38]}  h5 {[%clk 0:00:58]} 21. Ne3 {[%clk 0:00:38]}  Rad8 {[%clk 0:00:53]} 22. f4 {[%clk 0:00:33]}  e6 {[%clk 0:00:49]} 23. f5 {[%clk 0:00:30]}  exf5 {[%clk 0:00:47]} 24. Nxf5 {[%clk 0:00:31]}  gxf5 {[%clk 0:00:47]} 25. Bh6 {[%clk 0:00:04]}  f6 {[%clk 0:00:46]} 26. Bf4 {[%clk 0:00:03]}  Qf7 {[%clk 0:00:46]} 27. b3 {[%clk 0:00:03]}  Rfe8 {[%clk 0:00:46]} 28. Bd6 {[%clk 0:00:03]}  Be4 {[%clk 0:00:45]} 29. Bb4 {[%clk 0:00:03]}  Kh7 {[%clk 0:00:39]} 30. Bc5 {[%clk 0:00:03]}  Qg6 {[%clk 0:00:39]} 31. Qf4 {[%clk 0:00:02]}  Bh6 {[%clk 0:00:39]} 32. Qc7+ {[%clk 0:00:03]}  Qg7 {[%clk 0:00:39]} 33. Qa5 {[%clk 0:00:03]}  Rd7 {[%clk 0:00:38]} 34. g4 {[%clk 0:00:03]}  fxg4 {[%clk 0:00:36]} 35. hxg4 {[%clk 0:00:04]}  hxg4 {[%clk 0:00:37]} 36. Rg1 {[%clk 0:00:03]}  f5 {[%clk 0:00:38]} 37. Rdf1 {[%clk 0:00:03]}  Qg6 {[%clk 0:00:38]} 38. Qc3 {[%clk 0:00:03]}  f4 {[%clk 0:00:38]} 39. Qd2 {[%clk 0:00:03]}  f3 {[%clk 0:00:38]} 40. Qh2 {[%clk 0:00:03]}  Bf5 {[%clk 0:00:34]} 41. d5 {[%clk 0:00:03]}  Rxd5 {[%clk 0:00:32]} 42. Bb4 {[%clk 0:00:03]}  c5 {[%clk 0:00:27]} 43. Bc3 {[%clk 0:00:03]}  Bxc2+ {[%clk 0:00:15]} 44. Qxc2 {[%clk 0:00:03]}  Qxc2+ {[%clk 0:00:16]} 45. Kxc2 {[%clk 0:00:03]}  Re2+ {[%clk 0:00:17]} 46. Kb1 {[%clk 0:00:03]}  Re4 {[%clk 0:00:17]} 47. Rh1 {[%clk 0:00:02]}  Kg6 {[%clk 0:00:18]} 48. Rc1 {[%clk 0:00:02]}  Bxc1 {[%clk 0:00:17]} 0-1


[Site "https://www.chess.com"]

[Event "Titled Tuesday Blitz April 25 Early 2023"]
[White "Sliwicka, Alicja"]
[Black "Rustemov, Alexander"]
[WhiteFideId "1150677"]
[BlackFideId "4119002"]
[WhiteElo "2206"]
[BlackElo "2772"]
[Result "0-1"]
[Round "09"]
[TimeControl "180+2"]
[Date "2023.04.25"]
[WhiteClock "0:00:26"]
[BlackClock "0:00:37"]

1. e4 {[%clk 0:02:57]}  e6 {[%clk 0:02:59]} 2. d4 {[%clk 0:02:57]}  d5 {[%clk 0:03:00]} 3. e5 {[%clk 0:02:57]}  c5 {[%clk 0:02:59]} 4. c3 {[%clk 0:02:58]}  Qb6 {[%clk 0:03:00]} 5. Nf3 {[%clk 0:02:58]}  Bd7 {[%clk 0:03:00]} 6. Bd3 {[%clk 0:02:53]}  cxd4 {[%clk 0:03:00]} 7. O-O {[%clk 0:02:51]}  Nc6 {[%clk 0:02:59]} 8. Re1 {[%clk 0:02:50]}  Rc8 {[%clk 0:02:55]} 9. h4 {[%clk 0:02:40]}  Nge7 {[%clk 0:02:51]} 10. h5 {[%clk 0:02:36]}  h6 {[%clk 0:02:41]} 11. a3 {[%clk 0:02:33]}  a6 {[%clk 0:02:16]} 12. Nbd2 {[%clk 0:02:22]}  dxc3 {[%clk 0:02:15]} 13. bxc3 {[%clk 0:02:23]}  Na5 {[%clk 0:02:12]} 14. Rb1 {[%clk 0:02:22]}  Qc7 {[%clk 0:02:11]} 15. c4 {[%clk 0:02:18]}  Nxc4 {[%clk 0:01:56]} 16. Bxc4 {[%clk 0:02:13]}  dxc4 {[%clk 0:01:57]} 17. Ne4 {[%clk 0:02:13]}  Nd5 {[%clk 0:01:53]} 18. Nd4 {[%clk 0:02:07]}  b5 {[%clk 0:01:45]} 19. Qg4 {[%clk 0:02:05]}  Qxe5 {[%clk 0:01:36]} 20. Bb2 {[%clk 0:01:40]}  Qf4 {[%clk 0:01:29]} 21. Qd1 {[%clk 0:01:32]}  c3 {[%clk 0:01:28]} 22. Bxc3 {[%clk 0:01:13]}  Nxc3 {[%clk 0:01:24]} 23. Nxc3 {[%clk 0:01:13]}  Rxc3 {[%clk 0:01:25]} 24. Ne2 {[%clk 0:01:13]}  Qc7 {[%clk 0:01:17]} 25. Nxc3 {[%clk 0:01:13]}  Qxc3 {[%clk 0:01:18]} 26. Rc1 {[%clk 0:01:12]}  Qxa3 {[%clk 0:01:14]} 27. Qd4 {[%clk 0:00:57]}  Bd6 {[%clk 0:01:07]} 28. Qxg7 {[%clk 0:00:48]}  Rf8 {[%clk 0:01:06]} 29. Qxh6 {[%clk 0:00:35]}  Qb4 {[%clk 0:01:00]} 30. Qg7 {[%clk 0:00:31]}  Qh4 {[%clk 0:00:47]} 31. h6 {[%clk 0:00:29]}  Qh2+ {[%clk 0:00:37]} 32. Kf1 {[%clk 0:00:29]}  b4 {[%clk 0:00:37]} 33. h7 {[%clk 0:00:26]}  Bb5+ {[%clk 0:00:37]} 0-1


[Site "https://www.chess.com"]

[Event "Titled Tuesday Blitz April 25 Early 2023"]
[White "Osinenko, Anton"]
[Black "Liu, Xiangyi"]
[WhiteFideId "4158970"]
[BlackFideId "8605718"]
[WhiteElo "2294"]
[BlackElo "2323"]
[Result "1-0"]
[Round "09"]
[TimeControl "180+2"]
[Date "2023.04.25"]
[WhiteClock "0:00:36"]
[BlackClock "0:00:02"]

1. e4 {[%clk 0:03:00]}  e6 {[%clk 0:02:57]} 2. d4 {[%clk 0:02:58]}  d5 {[%clk 0:02:57]} 3. exd5 {[%clk 0:02:59]}  exd5 {[%clk 0:02:58]} 4. Bd3 {[%clk 0:02:59]}  Bd6 {[%clk 0:02:57]} 5. Ne2 {[%clk 0:02:58]}  Nc6 {[%clk 0:02:50]} 6. Nbc3 {[%clk 0:02:57]}  Nb4 {[%clk 0:02:47]} 7. Bb5+ {[%clk 0:02:50]}  c6 {[%clk 0:02:46]} 8. Ba4 {[%clk 0:02:50]}  Nf6 {[%clk 0:02:41]} 9. h3 {[%clk 0:02:51]}  O-O {[%clk 0:02:40]} 10. Be3 {[%clk 0:02:51]}  b5 {[%clk 0:02:37]} 11. Bb3 {[%clk 0:02:50]}  a5 {[%clk 0:02:37]} 12. a3 {[%clk 0:02:51]}  Na6 {[%clk 0:02:37]} 13. a4 {[%clk 0:02:48]}  b4 {[%clk 0:02:33]} 14. Nb1 {[%clk 0:02:45]}  Ne4 {[%clk 0:01:27]} 15. Nd2 {[%clk 0:02:39]}  f5 {[%clk 0:01:27]} 16. Nxe4 {[%clk 0:02:22]}  fxe4 {[%clk 0:01:28]} 17. Qd2 {[%clk 0:02:23]}  Be6 {[%clk 0:01:11]} 18. Nf4 {[%clk 0:02:18]}  Bf7 {[%clk 0:01:09]} 19. h4 {[%clk 0:02:18]}  Ra7 {[%clk 0:00:57]} 20. g3 {[%clk 0:02:16]}  Rd7 {[%clk 0:00:55]} 21. Qe2 {[%clk 0:02:09]}  Qc8 {[%clk 0:00:45]} 22. O-O {[%clk 0:01:56]}  Bxf4 {[%clk 0:00:42]} 23. Bxf4 {[%clk 0:01:56]}  c5 {[%clk 0:00:42]} 24. c3 {[%clk 0:01:49]}  c4 {[%clk 0:00:39]} 25. Bd1 {[%clk 0:01:46]}  Re8 {[%clk 0:00:35]} 26. Qd2 {[%clk 0:01:46]}  b3 {[%clk 0:00:34]} 27. f3 {[%clk 0:01:40]}  Be6 {[%clk 0:00:22]} 28. fxe4 {[%clk 0:01:38]}  dxe4 {[%clk 0:00:22]} 29. Bh5 {[%clk 0:01:34]}  g6 {[%clk 0:00:22]} 30. Be2 {[%clk 0:01:32]}  Nc7 {[%clk 0:00:19]} 31. Be5 {[%clk 0:01:26]}  Nd5 {[%clk 0:00:19]} 32. Qh6 {[%clk 0:01:25]}  Bh3 {[%clk 0:00:18]} 33. Rf2 {[%clk 0:01:26]}  e3 {[%clk 0:00:17]} 34. Rh2 {[%clk 0:01:20]}  Bf5 {[%clk 0:00:17]} 35. h5 {[%clk 0:01:20]}  Rde7 {[%clk 0:00:10]} 36. hxg6 {[%clk 0:01:19]}  Bxg6 {[%clk 0:00:10]} 37. Rf1 {[%clk 0:01:18]}  Rxe5 {[%clk 0:00:09]} 38. dxe5 {[%clk 0:01:19]}  Rxe5 {[%clk 0:00:06]} 39. Bxc4 {[%clk 0:01:14]}  Qc5 {[%clk 0:00:02]} 40. Re2 {[%clk 0:01:05]}  Re8 {[%clk 0:00:02]} 41. Qf4 {[%clk 0:00:36]} 1-0


[Site "https://www.chess.com"]

[Event "Titled Tuesday Blitz April 25 Early 2023"]
[White "Gunina, Valentina"]
[Black "Odegov, Artem"]
[WhiteFideId "4167570"]
[BlackFideId "34183644"]
[WhiteElo "2352"]
[BlackElo "2300"]
[Result "1/2-1/2"]
[Round "09"]
[TimeControl "180+2"]
[Date "2023.04.25"]
[WhiteClock "0:00:07"]
[BlackClock "0:00:02"]

1. d4 {[%clk 0:03:00]}  d5 {[%clk 0:02:59]} 2. c4 {[%clk 0:03:00]}  e6 {[%clk 0:03:00]} 3. Nf3 {[%clk 0:03:01]}  c5 {[%clk 0:03:00]} 4. cxd5 {[%clk 0:03:01]}  exd5 {[%clk 0:03:01]} 5. Nc3 {[%clk 0:03:01]}  Nc6 {[%clk 0:03:01]} 6. Bg5 {[%clk 0:02:55]}  Be7 {[%clk 0:03:00]} 7. Bxe7 {[%clk 0:02:55]}  Ngxe7 {[%clk 0:03:01]} 8. dxc5 {[%clk 0:02:56]}  O-O {[%clk 0:02:54]} 9. e3 {[%clk 0:02:55]}  Qa5 {[%clk 0:02:54]} 10. Bd3 {[%clk 0:02:55]}  Qxc5 {[%clk 0:02:53]} 11. h3 {[%clk 0:02:55]}  Rd8 {[%clk 0:02:49]} 12. O-O {[%clk 0:02:55]}  d4 {[%clk 0:02:36]} 13. Ne4 {[%clk 0:02:54]}  Qd5 {[%clk 0:02:32]} 14. Qe2 {[%clk 0:02:44]}  Bf5 {[%clk 0:02:22]} 15. exd4 {[%clk 0:02:36]}  Nxd4 {[%clk 0:01:50]} 16. Nxd4 {[%clk 0:02:36]}  Qxd4 {[%clk 0:01:51]} 17. Rad1 {[%clk 0:02:36]}  Nc6 {[%clk 0:01:43]} 18. Rfe1 {[%clk 0:02:32]}  Qe5 {[%clk 0:01:32]} 19. Qh5 {[%clk 0:02:24]}  Bg6 {[%clk 0:01:21]} 20. Qxe5 {[%clk 0:02:12]}  Nxe5 {[%clk 0:01:22]} 21. Bb1 {[%clk 0:02:04]}  Nc4 {[%clk 0:00:42]} 22. b3 {[%clk 0:02:02]}  Nb2 {[%clk 0:00:37]} 23. Rxd8+ {[%clk 0:02:00]}  Rxd8 {[%clk 0:00:38]} 24. Nc3 {[%clk 0:01:45]}  Bxb1 {[%clk 0:00:22]} 25. Rxb1 {[%clk 0:01:44]}  Nd3 {[%clk 0:00:21]} 26. Rd1 {[%clk 0:01:44]}  Rd7 {[%clk 0:00:21]} 27. Kf1 {[%clk 0:01:20]}  Ne5 {[%clk 0:00:20]} 28. Rxd7 {[%clk 0:01:13]}  Nxd7 {[%clk 0:00:21]} 29. Nb5 {[%clk 0:01:14]}  a6 {[%clk 0:00:17]} 30. Nd6 {[%clk 0:01:14]}  b5 {[%clk 0:00:17]} 31. Ke2 {[%clk 0:01:10]}  Kf8 {[%clk 0:00:17]} 32. Kd3 {[%clk 0:01:09]}  Ke7 {[%clk 0:00:17]} 33. Nf5+ {[%clk 0:01:09]}  Kf6 {[%clk 0:00:17]} 34. Nd4 {[%clk 0:00:51]}  Ke5 {[%clk 0:00:16]} 35. Nc6+ {[%clk 0:00:50]}  Kd6 {[%clk 0:00:16]} 36. Nb4 {[%clk 0:00:49]}  a5 {[%clk 0:00:14]} 37. Nc2 {[%clk 0:00:49]}  Kd5 {[%clk 0:00:13]} 38. Ne3+ {[%clk 0:00:48]}  Ke5 {[%clk 0:00:13]} 39. Kc3 {[%clk 0:00:42]}  Nc5 {[%clk 0:00:11]} 40. Nd1 {[%clk 0:00:16]}  h5 {[%clk 0:00:09]} 41. b4 {[%clk 0:00:11]}  Ne4+ {[%clk 0:00:08]} 42. Kb3 {[%clk 0:00:10]}  a4+ {[%clk 0:00:08]} 43. Kc2 {[%clk 0:00:10]}  Kd4 {[%clk 0:00:08]} 44. f3 {[%clk 0:00:11]}  Nf6 {[%clk 0:00:07]} 45. Nc3 {[%clk 0:00:11]}  Kc4 {[%clk 0:00:08]} 46. a3 {[%clk 0:00:12]}  g5 {[%clk 0:00:07]} 47. Nd1 {[%clk 0:00:09]}  Nd5 {[%clk 0:00:06]} 48. Nf2 {[%clk 0:00:08]}  Ne3+ {[%clk 0:00:05]} 49. Kb2 {[%clk 0:00:08]}  Nxg2 {[%clk 0:00:06]} 50. Ne4 {[%clk 0:00:08]}  Ne1 {[%clk 0:00:05]} 51. Nxg5 {[%clk 0:00:08]}  Nd3+ {[%clk 0:00:04]} 52. Kc2 {[%clk 0:00:08]}  f6 {[%clk 0:00:04]} 53. Ne4 {[%clk 0:00:08]}  Ne5 {[%clk 0:00:04]} 54. Nd6+ {[%clk 0:00:07]}  Kd5 {[%clk 0:00:04]} 55. Nxb5 {[%clk 0:00:08]}  Nxf3 {[%clk 0:00:05]} 56. Nc3+ {[%clk 0:00:08]}  Kc4 {[%clk 0:00:05]} 57. Nxa4 {[%clk 0:00:09]}  Ng5 {[%clk 0:00:03]} 58. Nb2+ {[%clk 0:00:08]}  Kb5 {[%clk 0:00:03]} 59. Kb3 {[%clk 0:00:09]}  Nxh3 {[%clk 0:00:03]} 60. a4+ {[%clk 0:00:09]}  Ka6 {[%clk 0:00:03]} 61. b5+ {[%clk 0:00:10]}  Kb7 {[%clk 0:00:04]} 62. Nd3 {[%clk 0:00:10]}  Ng5 {[%clk 0:00:04]} 63. a5 {[%clk 0:00:10]}  Ne4 {[%clk 0:00:04]} 64. Kc4 {[%clk 0:00:08]}  h4 {[%clk 0:00:05]} 65. Nf4 {[%clk 0:00:08]}  f5 {[%clk 0:00:02]} 66. b6 {[%clk 0:00:07]}  Ka6 {[%clk 0:00:02]} 67. Kd5 {[%clk 0:00:07]}  Nc3+ {[%clk 0:00:02]} 68. Kc6 {[%clk 0:00:08]}  Nb5 {[%clk 0:00:02]} 69. b7 {[%clk 0:00:08]}  Na7+ {[%clk 0:00:01]} 70. Kc7 {[%clk 0:00:08]}  Nb5+ {[%clk 0:00:02]} 71. Kc6 {[%clk 0:00:07]}  Na7+ {[%clk 0:00:02]} 72. Kc7 {[%clk 0:00:07]}  Nb5+ {[%clk 0:00:02]} 73. Kc6 {[%clk 0:00:07]} 1/2-1/2


[Site "https://www.chess.com"]

[Event "Titled Tuesday Blitz April 25 Early 2023"]
[White "Gontcharov, Vladislav"]
[Black "Halkias, Stelios"]
[WhiteFideId "4123492"]
[BlackFideId "4201809"]
[WhiteElo "2420"]
[BlackElo "2451"]
[Result "1/2-1/2"]
[Round "09"]
[TimeControl "180+2"]
[Date "2023.04.25"]
[WhiteClock "0:00:13"]
[BlackClock "0:00:11"]

1. e4 {[%clk 0:02:57]}  e5 {[%clk 0:02:48]} 2. Nf3 {[%clk 0:02:56]}  Nc6 {[%clk 0:02:48]} 3. Bb5 {[%clk 0:02:56]}  a6 {[%clk 0:02:47]} 4. Ba4 {[%clk 0:02:56]}  Nf6 {[%clk 0:02:45]} 5. d3 {[%clk 0:02:56]}  d6 {[%clk 0:02:42]} 6. O-O {[%clk 0:02:55]}  g6 {[%clk 0:02:42]} 7. d4 {[%clk 0:02:44]}  Bd7 {[%clk 0:02:39]} 8. d5 {[%clk 0:02:42]}  Ne7 {[%clk 0:02:39]} 9. Bxd7+ {[%clk 0:02:39]}  Nxd7 {[%clk 0:02:39]} 10. Re1 {[%clk 0:02:35]}  Bg7 {[%clk 0:02:38]} 11. c4 {[%clk 0:02:34]}  O-O {[%clk 0:02:37]} 12. Nc3 {[%clk 0:02:33]}  h6 {[%clk 0:02:38]} 13. Nd2 {[%clk 0:02:27]}  f5 {[%clk 0:02:38]} 14. f3 {[%clk 0:02:27]}  Nf6 {[%clk 0:02:19]} 15. Nf1 {[%clk 0:02:22]}  c6 {[%clk 0:02:18]} 16. Be3 {[%clk 0:02:05]}  Rc8 {[%clk 0:02:16]} 17. Qb3 {[%clk 0:01:56]}  Kh7 {[%clk 0:02:07]} 18. Rad1 {[%clk 0:01:52]}  c5 {[%clk 0:02:04]} 19. a3 {[%clk 0:01:46]}  Rb8 {[%clk 0:02:04]} 20. Qc2 {[%clk 0:01:39]}  Qd7 {[%clk 0:02:03]} 21. b4 {[%clk 0:01:37]}  b6 {[%clk 0:01:56]} 22. Rb1 {[%clk 0:01:31]}  Rfc8 {[%clk 0:01:53]} 23. Nd2 {[%clk 0:01:25]}  fxe4 {[%clk 0:01:48]} 24. fxe4 {[%clk 0:01:23]}  Ng4 {[%clk 0:01:47]} 25. Qd3 {[%clk 0:01:19]}  Rf8 {[%clk 0:01:44]} 26. Rf1 {[%clk 0:01:15]}  Ng8 {[%clk 0:01:35]} 27. Rxf8 {[%clk 0:01:15]}  Rxf8 {[%clk 0:01:34]} 28. Rf1 {[%clk 0:01:10]}  N8f6 {[%clk 0:01:23]} 29. h3 {[%clk 0:01:02]}  Nxe3 {[%clk 0:01:21]} 30. Qxe3 {[%clk 0:01:02]}  Nh5 {[%clk 0:01:17]} 31. Rxf8 {[%clk 0:01:00]}  Bxf8 {[%clk 0:01:17]} 32. Qf3 {[%clk 0:00:58]}  Bg7 {[%clk 0:00:57]} 33. Nf1 {[%clk 0:00:48]}  cxb4 {[%clk 0:00:53]} 34. axb4 {[%clk 0:00:48]}  a5 {[%clk 0:00:47]} 35. bxa5 {[%clk 0:00:44]}  bxa5 {[%clk 0:00:48]} 36. Nb5 {[%clk 0:00:44]}  Qc8 {[%clk 0:00:36]} 37. Nd2 {[%clk 0:00:36]}  Nf4 {[%clk 0:00:33]} 38. Kh2 {[%clk 0:00:35]}  Qc5 {[%clk 0:00:25]} 39. g3 {[%clk 0:00:19]}  Nh5 {[%clk 0:00:21]} 40. Kg2 {[%clk 0:00:20]}  Nf6 {[%clk 0:00:21]} 41. Qa3 {[%clk 0:00:19]}  Qxa3 {[%clk 0:00:14]} 42. Nxa3 {[%clk 0:00:19]}  Nd7 {[%clk 0:00:15]} 43. Kf3 {[%clk 0:00:19]}  Nc5 {[%clk 0:00:15]} 44. Nb5 {[%clk 0:00:17]}  Bf8 {[%clk 0:00:14]} 45. Nb1 {[%clk 0:00:17]}  a4 {[%clk 0:00:14]} 46. N1c3 {[%clk 0:00:17]}  Be7 {[%clk 0:00:15]} 47. Ke2 {[%clk 0:00:17]}  h5 {[%clk 0:00:15]} 48. Kd2 {[%clk 0:00:15]}  h4 {[%clk 0:00:15]} 49. g4 {[%clk 0:00:14]}  Kh6 {[%clk 0:00:16]} 50. Ke2 {[%clk 0:00:14]}  Kg5 {[%clk 0:00:16]} 51. Kf3 {[%clk 0:00:14]}  Nd3 {[%clk 0:00:16]} 52. Nxa4 {[%clk 0:00:13]}  Nf4 {[%clk 0:00:16]} 53. c5 {[%clk 0:00:13]}  dxc5 {[%clk 0:00:16]} 54. d6 {[%clk 0:00:14]}  Bd8 {[%clk 0:00:15]} 55. Nxc5 {[%clk 0:00:14]}  Kf6 {[%clk 0:00:15]} 56. Nb7 {[%clk 0:00:14]}  Bb6 {[%clk 0:00:15]} 57. Nc3 {[%clk 0:00:14]}  Ke6 {[%clk 0:00:15]} 58. Nd5 {[%clk 0:00:14]}  Nxd5 {[%clk 0:00:14]} 59. exd5+ {[%clk 0:00:14]}  Kxd5 {[%clk 0:00:13]} 60. d7 {[%clk 0:00:15]}  e4+ {[%clk 0:00:14]} 61. Ke2 {[%clk 0:00:15]}  Ke5 {[%clk 0:00:13]} 62. d8=Q {[%clk 0:00:14]}  Bxd8 {[%clk 0:00:13]} 63. Nxd8 {[%clk 0:00:15]}  Kf4 {[%clk 0:00:14]} 64. Nf7 {[%clk 0:00:13]}  Kg3 {[%clk 0:00:11]} 65. Ng5 {[%clk 0:00:13]}  Kf4 {[%clk 0:00:11]} 66. Nh7 {[%clk 0:00:13]}  Kg3 {[%clk 0:00:11]} 67. Ng5 {[%clk 0:00:13]}  Kf4 {[%clk 0:00:11]} 68. Nh7 {[%clk 0:00:13]}  Kg3 {[%clk 0:00:11]} 69. Ng5 {[%clk 0:00:13]} 1/2-1/2


[Site "https://www.chess.com"]

[Event "Titled Tuesday Blitz April 25 Early 2023"]
[White "Safin, Robert"]
[Black "Karthik Rajaa"]
[WhiteFideId "34189120"]
[BlackFideId "25035215"]
[WhiteElo "2245"]
[BlackElo "2215"]
[Result "1-0"]
[Round "09"]
[TimeControl "180+2"]
[Date "2023.04.25"]
[WhiteClock "0:00:06"]
[BlackClock "0:00:15"]

1. e4 {[%clk 0:03:00]}  c6 {[%clk 0:02:59]} 2. d4 {[%clk 0:02:59]}  d5 {[%clk 0:02:59]} 3. exd5 {[%clk 0:02:59]}  cxd5 {[%clk 0:02:59]} 4. c4 {[%clk 0:03:00]}  Nf6 {[%clk 0:02:59]} 5. Nc3 {[%clk 0:03:00]}  e6 {[%clk 0:02:58]} 6. Nf3 {[%clk 0:02:59]}  Bb4 {[%clk 0:02:57]} 7. cxd5 {[%clk 0:02:54]}  exd5 {[%clk 0:02:56]} 8. Bd2 {[%clk 0:02:55]}  O-O {[%clk 0:02:56]} 9. Be2 {[%clk 0:02:48]}  Nc6 {[%clk 0:02:54]} 10. O-O {[%clk 0:02:48]}  Bg4 {[%clk 0:02:52]} 11. Bg5 {[%clk 0:02:47]}  Bxc3 {[%clk 0:02:30]} 12. bxc3 {[%clk 0:02:46]}  Qd6 {[%clk 0:02:23]} 13. h3 {[%clk 0:02:15]}  Bh5 {[%clk 0:02:15]} 14. Bxf6 {[%clk 0:01:59]}  Qxf6 {[%clk 0:02:16]} 15. Nd2 {[%clk 0:01:57]}  Bg6 {[%clk 0:01:59]} 16. Bf3 {[%clk 0:01:56]}  Rfd8 {[%clk 0:01:59]} 17. Re1 {[%clk 0:01:53]}  Qd6 {[%clk 0:01:48]} 18. Nf1 {[%clk 0:01:52]}  Re8 {[%clk 0:01:37]} 19. Ne3 {[%clk 0:01:28]}  Be4 {[%clk 0:01:36]} 20. Bxe4 {[%clk 0:01:00]}  Rxe4 {[%clk 0:01:35]} 21. Qb3 {[%clk 0:01:01]}  Ne7 {[%clk 0:00:48]} 22. Qxb7 {[%clk 0:00:59]}  Rb8 {[%clk 0:00:44]} 23. Qxa7 {[%clk 0:00:58]}  g6 {[%clk 0:00:37]} 24. Rab1 {[%clk 0:00:57]}  Re8 {[%clk 0:00:34]} 25. Ng4 {[%clk 0:00:40]}  Nc6 {[%clk 0:00:12]} 26. Rxe4 {[%clk 0:00:23]}  Rxe4 {[%clk 0:00:12]} 27. Qa6 {[%clk 0:00:06]}  Re6 {[%clk 0:00:11]} 28. Ne3 {[%clk 0:00:05]}  Kg7 {[%clk 0:00:06]} 29. Qb5 {[%clk 0:00:04]}  Ne7 {[%clk 0:00:06]} 30. Qc5 {[%clk 0:00:04]}  Qd7 {[%clk 0:00:06]} 31. Rb5 {[%clk 0:00:04]}  Rd6 {[%clk 0:00:06]} 32. Qb4 {[%clk 0:00:03]}  Rc6 {[%clk 0:00:06]} 33. Rb7 {[%clk 0:00:03]}  Qe6 {[%clk 0:00:05]} 34. Rxe7 {[%clk 0:00:03]}  Qf6 {[%clk 0:00:06]} 35. Qb7 {[%clk 0:00:03]}  Rxc3 {[%clk 0:00:05]} 36. Nxd5 {[%clk 0:00:04]}  Rc1+ {[%clk 0:00:05]} 37. Kh2 {[%clk 0:00:04]}  Qd6+ {[%clk 0:00:06]} 38. g3 {[%clk 0:00:04]}  Kh6 {[%clk 0:00:04]} 39. Rxf7 {[%clk 0:00:04]}  Kh5 {[%clk 0:00:04]} 40. Rxh7+ {[%clk 0:00:04]}  Kg5 {[%clk 0:00:05]} 41. Qe7+ {[%clk 0:00:04]}  Qxe7 {[%clk 0:00:05]} 42. Rxe7 {[%clk 0:00:05]}  Rc2 {[%clk 0:00:06]} 43. Re5+ {[%clk 0:00:05]}  Kh6 {[%clk 0:00:06]} 44. Kg2 {[%clk 0:00:05]}  Rxa2 {[%clk 0:00:07]} 45. Nf4 {[%clk 0:00:06]}  Ra4 {[%clk 0:00:08]} 46. Re6 {[%clk 0:00:06]}  Kg5 {[%clk 0:00:08]} 47. Rxg6+ {[%clk 0:00:06]}  Kf5 {[%clk 0:00:09]} 48. Rd6 {[%clk 0:00:06]}  Ra3 {[%clk 0:00:09]} 49. Rd5+ {[%clk 0:00:06]}  Ke4 {[%clk 0:00:10]} 50. Re5+ {[%clk 0:00:06]}  Kxd4 {[%clk 0:00:10]} 51. Re3 {[%clk 0:00:06]}  Ra5 {[%clk 0:00:10]} 52. h4 {[%clk 0:00:06]}  Ra8 {[%clk 0:00:08]} 53. Kf3 {[%clk 0:00:07]}  Rh8 {[%clk 0:00:08]} 54. h5 {[%clk 0:00:07]}  Rf8 {[%clk 0:00:08]} 55. Re1 {[%clk 0:00:06]}  Rg8 {[%clk 0:00:07]} 56. h6 {[%clk 0:00:05]}  Rh8 {[%clk 0:00:08]} 57. Rh1 {[%clk 0:00:05]}  Ke5 {[%clk 0:00:08]} 58. Ng6+ {[%clk 0:00:05]}  Kf6 {[%clk 0:00:09]} 59. Nxh8 {[%clk 0:00:06]}  Kg5 {[%clk 0:00:09]} 60. Nf7+ {[%clk 0:00:05]}  Kg6 {[%clk 0:00:10]} 61. h7 {[%clk 0:00:06]}  Kf6 {[%clk 0:00:11]} 62. h8=Q+ {[%clk 0:00:05]}  Kf5 {[%clk 0:00:12]} 63. Rh5+ {[%clk 0:00:05]}  Ke6 {[%clk 0:00:13]} 64. Qe5+ {[%clk 0:00:05]}  Kd7 {[%clk 0:00:13]} 65. Qd6+ {[%clk 0:00:05]}  Kc8 {[%clk 0:00:14]} 66. Rc5+ {[%clk 0:00:04]}  Kb7 {[%clk 0:00:15]} 67. Rc7+ {[%clk 0:00:05]}  Kb8 {[%clk 0:00:15]} 68. Qd8# {[%clk 0:00:06]} 1-0


[Site "https://www.chess.com"]